Workbook

Sheet Guide
B4: PERSONAL CASH FLOW
B5: This workbook has annual, monthly and daily cash flow worksheets. Choose the cash flow type that works best for you or use them all to help gain insight on your personal cash flow.
B9: Annual Cash Flow | D9: Monthly Cash Flow | F9: Daily Cash Flow
B11: Enter an annual cash flow amount over various areas. See the monthly break down and how everything compares, and most importantly what your bottom line is in both annual and monthly figures. | D11: Enter the monthly cash flow you experience monthly or estimate the remaining months to see the projected cash flow for the year for each month. | F11: Enter an estimated amount of cash flow you experience daily and review the estimated monthly and annual totals. Use this to get a sense of what your daily spending habits will look like over the course of a month or year.

Sheet Annual Cash Flow
B1: PERSONAL CASH FLOW
B2: =AnnualCashFlowToDate -> $39,750.00 | H2: This is an annual estimation. Use this worksheet if you wish to view annual amounts with estimated monthly values If you wish to add daily items to the Tables, estimate their annual amount/value and place value in the Annual column.
B5: INCOME SUMMARY | F5: EXPENSES SUMMARY | J5: DISCRETIONARY SUMMARY | N5: SAVINGS SUMMARY
B6: Total Annual: | C6: =tblIncome[[#Totals],[Annual ]] -> $125,000.00 | F6: Total Annual: | G6: =tblExpenses[[#Totals],[Annual ]] -> $49,000.00 | J6: Total Annual: | K6: =tblDiscretionary[[#Totals],[Annual ]] -> $13,250.00 | N6: Total Annual: | O6: =tblSavings[[#Totals],[Annual ]] -> $23,000.00
B26: Total Monthly: | C26: =tblIncome[[#Totals],[Monthly ]] -> $10,416.67 | F26: Total Monthly: | G26: =tblExpenses[[#Totals],[Monthly ]] -> $4,083.33 | J26: Total Monthly: | K26: =tblDiscretionary[[#Totals],[Monthly ]] -> $1,104.17 | N26: Total Monthly: | O26: =tblSavings[[#Totals],[Monthly ]] -> $1,916.67
B29: Income | C29: Annual | D29: Monthly | F29: Expenses | G29: Annual | H29: Monthly | J29: Discretionary Expenses | K29: Annual | L29: Monthly | N29: Savings | O29: Annual | P29: Monthly
B30: Salary | C30: $90,000.00 | D30: =tblIncome[[#This Row],[Annual ]]/12 -> $7,500.00 | F30: Federal/SS/Medicare | G30: $15,000.00 | H30: =tblExpenses[[#This Row],[Annual ]]/12 -> $1,250.00 | J30: Dining | K30: $1,200.00 | L30: =tblDiscretionary[[#This Row],[Annual ]]/12 -> $100.00 | N30: Cash Reserves | O30: $5,000.00 | P30: =tblSavings[[#This Row],[Annual ]]/12 -> $416.67
B31: Commissions/bonus | C31: $5,000.00 | D31: =tblIncome[[#This Row],[Annual ]]/12 -> $416.67 | F31: State Income Tax | G31: $2,500.00 | H31: =tblExpenses[[#This Row],[Annual ]]/12 -> $208.33 | J31: Gifts | K31: $600.00 | L31: =tblDiscretionary[[#This Row],[Annual ]]/12 -> $50.00 | N31: 401(k)/Etc | O31: $12,000.00 | P31: =tblSavings[[#This Row],[Annual ]]/12 -> $1,000.00
B32: Other 1 | C32: $30,000.00 | D32: =tblIncome[[#This Row],[Annual ]]/12 -> $2,500.00 | F32: Vehicle Tax/Fees | G32: $200.00 | H32: =tblExpenses[[#This Row],[Annual ]]/12 -> $16.67 | J32: Travel | K32: $2,250.00 | L32: =tblDiscretionary[[#This Row],[Annual ]]/12 -> $187.50 | N32: Savings/Investment | O32: $6,000.00 | P32: =tblSavings[[#This Row],[Annual ]]/12 -> $500.00
B33: Other 2 | D33: =tblIncome[[#This Row],[Annual ]]/12 -> $0.00 | F33: Vehicle Payments | G33: $4,000.00 | H33: =tblExpenses[[#This Row],[Annual ]]/12 -> $333.33 | J33: Entertainment | K33: $1,200.00 | L33: =tblDiscretionary[[#This Row],[Annual ]]/12 -> $100.00 | N33: Other 1 | P33: =tblSavings[[#This Row],[Annual ]]/12 -> $0.00
B34: Other 3 | D34: =tblIncome[[#This Row],[Annual ]]/12 -> $0.00 | F34: Mortgage/Rent | G34: $15,000.00 | H34: =tblExpenses[[#This Row],[Annual ]]/12 -> $1,250.00 | J34: Personal Care | K34: $300.00 | L34: =tblDiscretionary[[#This Row],[Annual ]]/12 -> $25.00 | N34: Other 2 | P34: =tblSavings[[#This Row],[Annual ]]/12 -> $0.00
B35: Other 4 | D35: =tblIncome[[#This Row],[Annual ]]/12 -> $0.00 | F35: Insurance | G35: $250.00 | H35: =tblExpenses[[#This Row],[Annual ]]/12 -> $20.83 | J35: Shopping | K35: $2,000.00 | L35: =tblDiscretionary[[#This Row],[Annual ]]/12 -> $166.67 | N35: Total | O35: =SUBTOTAL(109,tblSavings[[Annual ]]) -> $23,000.00 | P35: =SUBTOTAL(109,tblSavings[[Monthly ]]) -> $1,916.67
B36: Total | C36: =SUBTOTAL(109,tblIncome[[Annual ]]) -> $125,000.00 | D36: =SUBTOTAL(109,tblIncome[[Monthly ]]) -> $10,416.67 | F36: Electricity | G36: $1,200.00 | H36: =tblExpenses[[#This Row],[Annual ]]/12 -> $100.00 | J36: Charity | K36: $600.00 | L36: =tblDiscretionary[[#This Row],[Annual ]]/12 -> $50.00
F37: Gas | G37: $600.00 | H37: =tblExpenses[[#This Row],[Annual ]]/12 -> $50.00 | J37: Club/Memberships | K37: $300.00 | L37: =tblDiscretionary[[#This Row],[Annual ]]/12 -> $25.00
F38: Water/Sewer | G38: $600.00 | H38: =tblExpenses[[#This Row],[Annual ]]/12 -> $50.00 | J38: Home Improvements | K38: $4,800.00 | L38: =tblDiscretionary[[#This Row],[Annual ]]/12 -> $400.00
F39: Garbage | G39: $150.00 | H39: =tblExpenses[[#This Row],[Annual ]]/12 -> $12.50 | J39: Other 1 | L39: =tblDiscretionary[[#This Row],[Annual ]]/12 -> $0.00
F40: Phone | G40: $600.00 | H40: =tblExpenses[[#This Row],[Annual ]]/12 -> $50.00 | J40: Other 2 | L40: =tblDiscretionary[[#This Row],[Annual ]]/12 -> $0.00
F41: Internet | G41: $600.00 | H41: =tblExpenses[[#This Row],[Annual ]]/12 -> $50.00 | J41: Total | K41: =SUBTOTAL(109,tblDiscretionary[[Annual ]]) -> $13,250.00 | L41: =SUBTOTAL(109,tblDiscretionary[[Monthly ]]) -> $1,104.17
F42: Life/Disability Premiums | G42: $1,500.00 | H42: =tblExpenses[[#This Row],[Annual ]]/12 -> $125.00
F43: Food | G43: $5,000.00 | H43: =tblExpenses[[#This Row],[Annual ]]/12 -> $416.67
F44: Clothing | G44: $1,200.00 | H44: =tblExpenses[[#This Row],[Annual ]]/12 -> $100.00
F45: Medical/Dental/Rx | G45: $600.00 | H45: =tblExpenses[[#This Row],[Annual ]]/12 -> $50.00
F46: Other 1 | H46: =tblExpenses[[#This Row],[Annual ]]/12 -> $0.00
F47: Other 2 | H47: =tblExpenses[[#This Row],[Annual ]]/12 -> $0.00
F48: Total | G48: =SUBTOTAL(109,tblExpenses[[Annual ]]) -> $49,000.00 | H48: =SUBTOTAL(109,tblExpenses[[Monthly ]]) -> $4,083.33

Sheet Monthly Cash Flow
B1: PERSONAL CASH FLOW
B2: =MonthlyCashFlowToDate -> $18,380.00 | H2: NOTE: For daily items, estimate the monthly amount/value and place that value in the appropriate month column.
B5: Type | C5: Description | D5: Jan | E5: Feb | F5: Mar | G5: Apr | H5: May | I5: Jun | J5: Jul | K5: Aug | L5: Sep | M5: Oct | N5: Nov | O5: Dec | P5: Total
B6: Income | C6: Salary | D6: $7,500.00 | E6: $7,500.00 | F6: $7,500.00 | G6: $7,500.00 | H6: $7,500.00 | I6: $7,500.00 | P6: =SUM(tblMontly[[#This Row],[Jan]:[Dec]]) -> $45,000.00
B7: Income | C7: Commissions/bonus | D7: $400.00 | E7: $400.00 | F7: $500.00 | G7: $200.00 | H7: $0.00 | I7: $600.00 | P7: =SUM(tblMontly[[#This Row],[Jan]:[Dec]]) -> $2,100.00
B8: Income | C8: Other 1 | D8: $2,500.00 | E8: $2,500.00 | F8: $2,500.00 | G8: $2,500.00 | H8: $2,500.00 | I8: $2,500.00 | P8: =SUM(tblMontly[[#This Row],[Jan]:[Dec]]) -> $15,000.00
B9: Income | C9: Other 2 | D9: $0.00 | E9: $0.00 | F9: $0.00 | G9: $0.00 | H9: $0.00 | I9: $0.00 | P9: =SUM(tblMontly[[#This Row],[Jan]:[Dec]]) -> $0.00
B10: Income | C10: Other 3 | D10: $0.00 | E10: $0.00 | F10: $0.00 | G10: $0.00 | H10: $0.00 | I10: $0.00 | P10: =SUM(tblMontly[[#This Row],[Jan]:[Dec]]) -> $0.00
B11: Income | C11: Other 4 | D11: $0.00 | E11: $0.00 | F11: $0.00 | G11: $0.00 | H11: $0.00 | I11: $0.00 | P11: =SUM(tblMontly[[#This Row],[Jan]:[Dec]]) -> $0.00
B12: Expenses | C12: Federal/SS/Medicare | D12: $1,250.00 | E12: $1,250.00 | F12: $1,250.00 | G12: $1,250.00 | H12: $1,250.00 | I12: $1,250.00 | P12: =SUM(tblMontly[[#This Row],[Jan]:[Dec]]) -> $7,500.00
B13: Expenses | C13: State Income Tax | D13: $208.33 | E13: $208.33 | F13: $208.33 | G13: $208.33 | H13: $208.33 | I13: $208.33 | P13: =SUM(tblMontly[[#This Row],[Jan]:[Dec]]) -> $1,250.00
B14: Expenses | C14: Vehicle Tax/Fees | D14: $16.67 | E14: $16.67 | F14: $16.67 | G14: $16.67 | H14: $16.67 | I14: $16.67 | P14: =SUM(tblMontly[[#This Row],[Jan]:[Dec]]) -> $100.00
B15: Expenses | C15: Vehicle Payments | D15: $333.33 | E15: $333.33 | F15: $333.33 | G15: $333.33 | H15: $333.33 | I15: $333.33 | P15: =SUM(tblMontly[[#This Row],[Jan]:[Dec]]) -> $2,000.00
B16: Expenses | C16: Mortgage/Rent | D16: $1,250.00 | E16: $1,250.00 | F16: $1,250.00 | G16: $1,250.00 | H16: $1,250.00 | I16: $1,250.00 | P16: =SUM(tblMontly[[#This Row],[Jan]:[Dec]]) -> $7,500.00
B17: Expenses | C17: Insurance | D17: $25.00 | E17: $25.00 | F17: $25.00 | G17: $25.00 | H17: $25.00 | I17: $25.00 | P17: =SUM(tblMontly[[#This Row],[Jan]:[Dec]]) -> $150.00
B18: Expenses | C18: Electricity | D18: $100.00 | E18: $100.00 | F18: $100.00 | G18: $100.00 | H18: $100.00 | I18: $100.00 | P18: =SUM(tblMontly[[#This Row],[Jan]:[Dec]]) -> $600.00
B19: Expenses | C19: Gas | D19: $50.00 | E19: $50.00 | F19: $50.00 | G19: $50.00 | H19: $50.00 | I19: $50.00 | P19: =SUM(tblMontly[[#This Row],[Jan]:[Dec]]) -> $300.00
B20: Expenses | C20: Water | D20: $50.00 | E20: $50.00 | F20: $50.00 | G20: $50.00 | H20: $50.00 | I20: $50.00 | P20: =SUM(tblMontly[[#This Row],[Jan]:[Dec]]) -> $300.00
B21: Expenses | C21: Sewer | D21: $25.00 | E21: $25.00 | F21: $25.00 | G21: $25.00 | H21: $25.00 | I21: $25.00 | P21: =SUM(tblMontly[[#This Row],[Jan]:[Dec]]) -> $150.00
B22: Expenses | C22: Garbage | D22: $12.50 | E22: $12.50 | F22: $12.50 | G22: $12.50 | H22: $12.50 | I22: $12.50 | P22: =SUM(tblMontly[[#This Row],[Jan]:[Dec]]) -> $75.00
B23: Expenses | C23: Phone | D23: $50.00 | E23: $50.00 | F23: $50.00 | G23: $50.00 | H23: $50.00 | I23: $50.00 | P23: =SUM(tblMontly[[#This Row],[Jan]:[Dec]]) -> $300.00
B24: Expenses | C24: Internet | D24: $50.00 | E24: $50.00 | F24: $50.00 | G24: $50.00 | H24: $50.00 | I24: $50.00 | P24: =SUM(tblMontly[[#This Row],[Jan]:[Dec]]) -> $300.00
B25: Expenses | C25: Life/Disability Premiums | D25: $125.00 | E25: $125.00 | F25: $125.00 | G25: $125.00 | H25: $125.00 | I25: $125.00 | P25: =SUM(tblMontly[[#This Row],[Jan]:[Dec]]) -> $750.00
B26: Expenses | C26: Food | D26: $400.00 | E26: $500.00 | F26: $450.00 | G26: $400.00 | H26: $450.00 | I26: $425.00 | P26: =SUM(tblMontly[[#This Row],[Jan]:[Dec]]) -> $2,625.00
B27: Expenses | C27: Clothing | D27: $50.00 | E27: $75.00 | F27: $100.00 | G27: $75.00 | H27: $125.00 | I27: $75.00 | P27: =SUM(tblMontly[[#This Row],[Jan]:[Dec]]) -> $500.00
B28: Expenses | C28: Medical/Dental/Rx | D28: $50.00 | E28: $10.00 | F28: $25.00 | G28: $25.00 | H28: $20.00 | I28: $70.00 | P28: =SUM(tblMontly[[#This Row],[Jan]:[Dec]]) -> $200.00
B29: Expenses | C29: Bus | D29: $30.00 | E29: $30.00 | F29: $30.00 | G29: $20.00 | H29: $30.00 | I29: $30.00 | P29: =SUM(tblMontly[[#This Row],[Jan]:[Dec]]) -> $170.00
B30: Expenses | C30: Other 2 | D30: $0.00 | E30: $0.00 | F30: $0.00 | G30: $0.00 | H30: $0.00 | I30: $0.00 | P30: =SUM(tblMontly[[#This Row],[Jan]:[Dec]]) -> $0.00
B31: Expenses | C31: Other 3 | D31: $0.00 | E31: $0.00 | F31: $0.00 | G31: $0.00 | H31: $0.00 | I31: $0.00 | P31: =SUM(tblMontly[[#This Row],[Jan]:[Dec]]) -> $0.00
B32: Expenses | C32: Other 4 | D32: $0.00 | E32: $0.00 | F32: $0.00 | G32: $0.00 | H32: $0.00 | I32: $0.00 | P32: =SUM(tblMontly[[#This Row],[Jan]:[Dec]]) -> $0.00
B33: Discretionary | C33: Dining | D33: $50.00 | E33: $150.00 | F33: $100.00 | G33: $50.00 | H33: $150.00 | I33: $100.00 | P33: =SUM(tblMontly[[#This Row],[Jan]:[Dec]]) -> $600.00
B34: Discretionary | C34: Gifts | D34: $25.00 | E34: $75.00 | F34: $50.00 | G34: $25.00 | H34: $75.00 | I34: $50.00 | P34: =SUM(tblMontly[[#This Row],[Jan]:[Dec]]) -> $300.00
B35: Discretionary | C35: Travel | D35: $0.00 | E35: $0.00 | F35: $1,000.00 | G35: $0.00 | H35: $0.00 | I35: $1,000.00 | P35: =SUM(tblMontly[[#This Row],[Jan]:[Dec]]) -> $2,000.00
B36: Discretionary | C36: Entertainment | D36: $50.00 | E36: $150.00 | F36: $100.00 | G36: $50.00 | H36: $150.00 | I36: $100.00 | P36: =SUM(tblMontly[[#This Row],[Jan]:[Dec]]) -> $600.00
B37: Discretionary | C37: Personal Care | D37: $15.00 | E37: $25.00 | F37: $35.00 | G37: $15.00 | H37: $25.00 | I37: $35.00 | P37: =SUM(tblMontly[[#This Row],[Jan]:[Dec]]) -> $150.00
B38: Discretionary | C38: Shopping | D38: $100.00 | E38: $200.00 | F38: $150.00 | G38: $175.00 | H38: $150.00 | I38: $175.00 | P38: =SUM(tblMontly[[#This Row],[Jan]:[Dec]]) -> $950.00
B39: Discretionary | C39: Charity | D39: $50.00 | E39: $50.00 | F39: $50.00 | G39: $50.00 | H39: $50.00 | I39: $50.00 | P39: =SUM(tblMontly[[#This Row],[Jan]:[Dec]]) -> $300.00
B40: Discretionary | C40: Club/Memberships | D40: $25.00 | E40: $25.00 | F40: $25.00 | G40: $25.00 | H40: $25.00 | I40: $25.00 | P40: =SUM(tblMontly[[#This Row],[Jan]:[Dec]]) -> $150.00
B41: Discretionary | C41: Home Improvements | D41: $400.00 | E41: $400.00 | F41: $400.00 | G41: $400.00 | H41: $400.00 | I41: $400.00 | P41: =SUM(tblMontly[[#This Row],[Jan]:[Dec]]) -> $2,400.00
B42: Discretionary | C42: Other 1 | D42: $0.00 | E42: $0.00 | F42: $0.00 | G42: $0.00 | H42: $0.00 | I42: $0.00 | P42: =SUM(tblMontly[[#This Row],[Jan]:[Dec]]) -> $0.00
B43: Discretionary | C43: Other 2 | D43: $0.00 | E43: $0.00 | F43: $0.00 | G43: $0.00 | H43: $0.00 | I43: $0.00 | P43: =SUM(tblMontly[[#This Row],[Jan]:[Dec]]) -> $0.00
B44: Savings | C44: Cash Reserves | D44: $416.67 | E44: $416.67 | F44: $416.67 | G44: $416.67 | H44: $416.67 | I44: $416.67 | P44: =SUM(tblMontly[[#This Row],[Jan]:[Dec]]) -> $2,500.00
B45: Savings | C45: 401(k)/Etc | D45: $1,000.00 | E45: $1,000.00 | F45: $1,000.00 | G45: $1,000.00 | H45: $1,000.00 | I45: $1,000.00 | P45: =SUM(tblMontly[[#This Row],[Jan]:[Dec]]) -> $6,000.00
B46: Savings | C46: Savings/Investment Account | D46: $500.00 | E46: $500.00 | F46: $500.00 | G46: $500.00 | H46: $500.00 | I46: $500.00 | P46: =SUM(tblMontly[[#This Row],[Jan]:[Dec]]) -> $3,000.00
B47: Savings | C47: Other 1 | D47: $0.00 | E47: $0.00 | F47: $0.00 | G47: $0.00 | H47: $0.00 | I47: $0.00 | P47: =SUM(tblMontly[[#This Row],[Jan]:[Dec]]) -> $0.00
B48: Savings | C48: Other 2 | D48: $0.00 | E48: $0.00 | F48: $0.00 | G48: $0.00 | H48: $0.00 | I48: $0.00 | P48: =SUM(tblMontly[[#This Row],[Jan]:[Dec]]) -> $0.00
B49: Total | D49: =SUMIF(tblMontly[Type],"Income",tblMontly[Jan])-SUMIF(tblMontly[Type],"<>Income",tblMontly[Jan]) -> $3,692.50 | E49: =SUMIF(tblMontly[Type],"Income",tblMontly[Feb])-SUMIF(tblMontly[Type],"<>Income",tblMontly[Feb]) -> $3,247.50 | F49: =SUMIF(tblMontly[Type],"Income",tblMontly[Mar])-SUMIF(tblMontly[Type],"<>Income",tblMontly[Mar]) -> $2,522.50 | G49: =SUMIF(tblMontly[Type],"Income",tblMontly[Apr])-SUMIF(tblMontly[Type],"<>Income",tblMontly[Apr]) -> $3,427.50 | H49: =SUMIF(tblMontly[Type],"Income",tblMontly[May])-SUMIF(tblMontly[Type],"<>Income",tblMontly[May]) -> $2,887.50 | I49: =SUMIF(tblMontly[Type],"Income",tblMontly[Jun])-SUMIF(tblMontly[Type],"<>Income",tblMontly[Jun]) -> $2,602.50 | J49: =SUMIF(tblMontly[Type],"Income",tblMontly[Jul])-SUMIF(tblMontly[Type],"<>Income",tblMontly[Jul]) -> $0.00 | K49: =SUMIF(tblMontly[Type],"Income",tblMontly[Aug])-SUMIF(tblMontly[Type],"<>Income",tblMontly[Aug]) -> $0.00 | L49: =SUMIF(tblMontly[Type],"Income",tblMontly[Sep])-SUMIF(tblMontly[Type],"<>Income",tblMontly[Sep]) -> $0.00 | M49: =SUMIF(tblMontly[Type],"Income",tblMontly[Oct])-SUMIF(tblMontly[Type],"<>Income",tblMontly[Oct]) -> $0.00 | N49: =SUMIF(tblMontly[Type],"Income",tblMontly[Nov])-SUMIF(tblMontly[Type],"<>Income",tblMontly[Nov]) -> $0.00 | O49: =SUMIF(tblMontly[Type],"Income",tblMontly[Dec])-SUMIF(tblMontly[Type],"<>Income",tblMontly[Dec]) -> $0.00 | P49: =SUMIF(tblMontly[Type],"Income",tblMontly[Total])-SUMIF(tblMontly[Type],"<>Income",tblMontly[Total]) -> $18,380.00

Sheet Daily Cash Flow
B1: PERSONAL CASH FLOW
B2: =DailyCashFlow -> $577.84 | H2: NOTE: If you wish to add daily items to the Table, estimate their monthly amount/value and place value in the appropriate month column.
B4: DAILY SUMMARY
B5: TOTALS | D5: Daily | E5: Monthly | F5: Annual
B6: Income | D6: =SUMIF(tblDaily[Type],tblDailyTotals[[#This Row],[TOTALS]],tblDaily[Daily]) -> $342.47 | E6: =SUMIF(tblDaily[Type],tblDailyTotals[[#This Row],[TOTALS]],tblDaily[Monthly]) -> $10,416.80 | F6: =SUMIF(tblDaily[Type],tblDailyTotals[[#This Row],[TOTALS]],tblDaily[Annual]) -> $125,001.55
B7: Expenses | D7: =SUMIF(tblDaily[Type],tblDailyTotals[[#This Row],[TOTALS]],tblDaily[Daily]) -> $136.06 | E7: =SUMIF(tblDaily[Type],tblDailyTotals[[#This Row],[TOTALS]],tblDaily[Monthly]) -> $4,138.49 | F7: =SUMIF(tblDaily[Type],tblDailyTotals[[#This Row],[TOTALS]],tblDaily[Annual]) -> $49,661.90
B8: Discretionary | D8: =SUMIF(tblDaily[Type],tblDailyTotals[[#This Row],[TOTALS]],tblDaily[Daily]) -> $36.29 | E8: =SUMIF(tblDaily[Type],tblDailyTotals[[#This Row],[TOTALS]],tblDaily[Monthly]) -> $1,103.82 | F8: =SUMIF(tblDaily[Type],tblDailyTotals[[#This Row],[TOTALS]],tblDaily[Annual]) -> $13,245.85
B9: Savings | D9: =SUMIF(tblDaily[Type],tblDailyTotals[[#This Row],[TOTALS]],tblDaily[Daily]) -> $63.02 | E9: =SUMIF(tblDaily[Type],tblDailyTotals[[#This Row],[TOTALS]],tblDaily[Monthly]) -> $1,916.86 | F9: =SUMIF(tblDaily[Type],tblDailyTotals[[#This Row],[TOTALS]],tblDaily[Annual]) -> $23,002.30
B12: Type | C12: Description | D12: Daily | E12: Monthly | F12: Annual
B13: Income | C13: Salary | D13: $246.58 | E13: =tblDaily[[#This Row],[Annual]]/12 -> $7,500.14 | F13: =tblDaily[[#This Row],[Daily]]*365 -> $90,001.70
B14: Income | C14: Commissions/bonus | D14: $13.70 | E14: =tblDaily[[#This Row],[Annual]]/12 -> $416.71 | F14: =tblDaily[[#This Row],[Daily]]*365 -> $5,000.50
B15: Income | C15: Other 1 | D15: $82.19 | E15: =tblDaily[[#This Row],[Annual]]/12 -> $2,499.95 | F15: =tblDaily[[#This Row],[Daily]]*365 -> $29,999.35
B16: Income | C16: Other 2 | D16: $0.00 | E16: =tblDaily[[#This Row],[Annual]]/12 -> $0.00 | F16: =tblDaily[[#This Row],[Daily]]*365 -> $0.00
B17: Income | C17: Other 3 | D17: $0.00 | E17: =tblDaily[[#This Row],[Annual]]/12 -> $0.00 | F17: =tblDaily[[#This Row],[Daily]]*365 -> $0.00
B18: Income | C18: Other 4 | D18: $0.00 | E18: =tblDaily[[#This Row],[Annual]]/12 -> $0.00 | F18: =tblDaily[[#This Row],[Daily]]*365 -> $0.00
B19: Expenses | C19: Federal/SS/Medicare | D19: $41.10 | E19: =tblDaily[[#This Row],[Annual]]/12 -> $1,250.13 | F19: =tblDaily[[#This Row],[Daily]]*365 -> $15,001.50
B20: Expenses | C20: State Income Tax | D20: $6.85 | E20: =tblDaily[[#This Row],[Annual]]/12 -> $208.35 | F20: =tblDaily[[#This Row],[Daily]]*365 -> $2,500.25
B21: Expenses | C21: Vehicle Tax/Fees | D21: $0.55 | E21: =tblDaily[[#This Row],[Annual]]/12 -> $16.73 | F21: =tblDaily[[#This Row],[Daily]]*365 -> $200.75
B22: Expenses | C22: Vehicle Payments | D22: $10.96 | E22: =tblDaily[[#This Row],[Annual]]/12 -> $333.37 | F22: =tblDaily[[#This Row],[Daily]]*365 -> $4,000.40
B23: Expenses | C23: Mortgage/Rent | D23: $41.10 | E23: =tblDaily[[#This Row],[Annual]]/12 -> $1,250.13 | F23: =tblDaily[[#This Row],[Daily]]*365 -> $15,001.50
B24: Expenses | C24: Insurance | D24: $0.68 | E24: =tblDaily[[#This Row],[Annual]]/12 -> $20.68 | F24: =tblDaily[[#This Row],[Daily]]*365 -> $248.20
B25: Expenses | C25: Electricity | D25: $3.29 | E25: =tblDaily[[#This Row],[Annual]]/12 -> $100.07 | F25: =tblDaily[[#This Row],[Daily]]*365 -> $1,200.85
B26: Expenses | C26: Gas | D26: $1.64 | E26: =tblDaily[[#This Row],[Annual]]/12 -> $49.88 | F26: =tblDaily[[#This Row],[Daily]]*365 -> $598.60
B27: Expenses | C27: Water | D27: $1.64 | E27: =tblDaily[[#This Row],[Annual]]/12 -> $49.88 | F27: =tblDaily[[#This Row],[Daily]]*365 -> $598.60
B28: Expenses | C28: Sewer | D28: $0.82 | E28: =tblDaily[[#This Row],[Annual]]/12 -> $24.94 | F28: =tblDaily[[#This Row],[Daily]]*365 -> $299.30
B29: Expenses | C29: Garbage | D29: $0.41 | E29: =tblDaily[[#This Row],[Annual]]/12 -> $12.47 | F29: =tblDaily[[#This Row],[Daily]]*365 -> $149.65
B30: Expenses | C30: Phone | D30: $1.64 | E30: =tblDaily[[#This Row],[Annual]]/12 -> $49.88 | F30: =tblDaily[[#This Row],[Daily]]*365 -> $598.60
B31: Expenses | C31: Internet | D31: $1.64 | E31: =tblDaily[[#This Row],[Annual]]/12 -> $49.88 | F31: =tblDaily[[#This Row],[Daily]]*365 -> $598.60
B32: Expenses | C32: Life/Disability Premiums | D32: $4.11 | E32: =tblDaily[[#This Row],[Annual]]/12 -> $125.01 | F32: =tblDaily[[#This Row],[Daily]]*365 -> $1,500.15
B33: Expenses | C33: Food | D33: $13.70 | E33: =tblDaily[[#This Row],[Annual]]/12 -> $416.71 | F33: =tblDaily[[#This Row],[Daily]]*365 -> $5,000.50
B34: Expenses | C34: Clothing | D34: $3.29 | E34: =tblDaily[[#This Row],[Annual]]/12 -> $100.07 | F34: =tblDaily[[#This Row],[Daily]]*365 -> $1,200.85
B35: Expenses | C35: Medical/Dental/Rx | D35: $1.64 | E35: =tblDaily[[#This Row],[Annual]]/12 -> $49.88 | F35: =tblDaily[[#This Row],[Daily]]*365 -> $598.60
B36: Expenses | C36: Bus | D36: $1.00 | E36: =tblDaily[[#This Row],[Annual]]/12 -> $30.42 | F36: =tblDaily[[#This Row],[Daily]]*365 -> $365.00
B37: Expenses | C37: Other 2 | D37: $0.00 | E37: =tblDaily[[#This Row],[Annual]]/12 -> $0.00 | F37: =tblDaily[[#This Row],[Daily]]*365 -> $0.00
B38: Expenses | C38: Other 3 | D38: $0.00 | E38: =tblDaily[[#This Row],[Annual]]/12 -> $0.00 | F38: =tblDaily[[#This Row],[Daily]]*365 -> $0.00
B39: Expenses | C39: Other 4 | D39: $0.00 | E39: =tblDaily[[#This Row],[Annual]]/12 -> $0.00 | F39: =tblDaily[[#This Row],[Daily]]*365 -> $0.00
B40: Discretionary | C40: Dining | D40: $3.29 | E40: =tblDaily[[#This Row],[Annual]]/12 -> $100.07 | F40: =tblDaily[[#This Row],[Daily]]*365 -> $1,200.85
B41: Discretionary | C41: Gifts | D41: $1.64 | E41: =tblDaily[[#This Row],[Annual]]/12 -> $49.88 | F41: =tblDaily[[#This Row],[Daily]]*365 -> $598.60
B42: Discretionary | C42: Travel | D42: $6.16 | E42: =tblDaily[[#This Row],[Annual]]/12 -> $187.37 | F42: =tblDaily[[#This Row],[Daily]]*365 -> $2,248.40
B43: Discretionary | C43: Entertainment | D43: $3.29 | E43: =tblDaily[[#This Row],[Annual]]/12 -> $100.07 | F43: =tblDaily[[#This Row],[Daily]]*365 -> $1,200.85
B44: Discretionary | C44: Personal Care | D44: $0.82 | E44: =tblDaily[[#This Row],[Annual]]/12 -> $24.94 | F44: =tblDaily[[#This Row],[Daily]]*365 -> $299.30
B45: Discretionary | C45: Shopping | D45: $5.48 | E45: =tblDaily[[#This Row],[Annual]]/12 -> $166.68 | F45: =tblDaily[[#This Row],[Daily]]*365 -> $2,000.20
B46: Discretionary | C46: Charity | D46: $1.64 | E46: =tblDaily[[#This Row],[Annual]]/12 -> $49.88 | F46: =tblDaily[[#This Row],[Daily]]*365 -> $598.60
B47: Discretionary | C47: Club/Memberships | D47: $0.82 | E47: =tblDaily[[#This Row],[Annual]]/12 -> $24.94 | F47: =tblDaily[[#This Row],[Daily]]*365 -> $299.30
B48: Discretionary | C48: Home Improvements | D48: $13.15 | E48: =tblDaily[[#This Row],[Annual]]/12 -> $399.98 | F48: =tblDaily[[#This Row],[Daily]]*365 -> $4,799.75
B49: Discretionary | C49: Other 1 | D49: $0.00 | E49: =tblDaily[[#This Row],[Annual]]/12 -> $0.00 | F49: =tblDaily[[#This Row],[Daily]]*365 -> $0.00
B50: Discretionary | C50: Other 2 | D50: $0.00 | E50: =tblDaily[[#This Row],[Annual]]/12 -> $0.00 | F50: =tblDaily[[#This Row],[Daily]]*365 -> $0.00
B51: Savings | C51: Cash Reserves | D51: $13.70 | E51: =tblDaily[[#This Row],[Annual]]/12 -> $416.71 | F51: =tblDaily[[#This Row],[Daily]]*365 -> $5,000.50
B52: Savings | C52: 401(k)/Etc | D52: $32.88 | E52: =tblDaily[[#This Row],[Annual]]/12 -> $1,000.10 | F52: =tblDaily[[#This Row],[Daily]]*365 -> $12,001.20
B53: Savings | C53: Savings/Investment Account | D53: $16.44 | E53: =tblDaily[[#This Row],[Annual]]/12 -> $500.05 | F53: =tblDaily[[#This Row],[Daily]]*365 -> $6,000.60
B54: Savings | C54: Other 1 | D54: $0.00 | E54: =tblDaily[[#This Row],[Annual]]/12 -> $0.00 | F54: =tblDaily[[#This Row],[Daily]]*365 -> $0.00
B55: Savings | C55: Other 2 | D55: $0.00 | E55: =tblDaily[[#This Row],[Annual]]/12 -> $0.00 | F55: =tblDaily[[#This Row],[Daily]]*365 -> $0.00
B56: Total | D56: =SUMIF(tblDaily[Type],"Income",tblDaily[Daily])-SUMIF(tblDaily[Type],"<>Income",tblDaily[Daily]) -> $107.10 | E56: =SUMIF(tblDaily[Type],"Income",tblDaily[Monthly])-SUMIF(tblDaily[Type],"<>Income",tblDaily[Monthly]) -> $3,257.63 | F56: =SUMIF(tblDaily[Type],"Income",tblDaily[Annual])-SUMIF(tblDaily[Type],"<>Income",tblDaily[Annual]) -> $39,091.50
